fUST/lending_fUST_20250321
["ID","MTS","AMOUNT","RATE_DAILY","PERIOD"]
[356491985,1742531447148,-216.36417524,0.00032876,21]
[356491986,1742531447157,-1354.71,0.00032876,21]
[356491987,1742531447167,-500.0,0.00032876,21]
[356491988,1742531447176,-500.0,0.00032876,21]
[356491989,1742531447186,-1238.94,0.00032876,21]
[356491990,1742531447195,-1025.44,0.00032876,21]
[356491991,1742531447205,-500.0,0.00032876,21]
[356491992,1742531447214,-500.0,0.00032876,21]
[356491993,1742531447224,-500.0,0.00032876,21]
[356491994,1742531447234,-565.43,0.00032876,21]
[356491995,1742531447243,-948.34,0.00032876,21]
[356491996,1742531447253,-500.0,0.00032876,21]
[356491997,1742531447262,-513.89444504,0.00032876,21]
[356491998,1742531447271,-613.73,0.00032876,21]
[356491999,1742531447281,-619.32,0.00032876,21]
[356492000,1742531447290,-513.61,0.00032876,21]
[356492001,1742531447299,-323.20288662,0.00032876,21]
[356492002,1742531447308,-500.0,0.00032876,21]
[356492003,1742531447318,-788.3,0.00032876,21]
[356492004,1742531447327,-500.0,0.00032876,21]
[356492005,1742531447336,-554.01603814,0.00032876,21]
[356492006,1742531447346,-292.75605603,0.00032876,21]
[356492011,1742531751524,177.666717,0.00010959,2]
[356492022,1742532383122,1936.0,0.00018,2]
[356492059,1742532632053,-492.98234495,0.00024624,2]
[356492077,1742532637839,-23.87731205,0.00024624,2]
[356492079,1742532637849,-434.50049202,0.00024841,2]
[356492081,1742532637859,-434.500492,0.00024871,2]
[356492083,1742532637871,-434.500492,0.000249,2]
[356492085,1742532637881,-300.0,0.00024941,2]
[356492087,1742532637891,-6138.88789617,0.00024942,2]
[356492129,1742532640146,-18761.11210383,0.00024942,2]
[356492131,1742532640155,-220.09729,0.00025,2]
[356492133,1742532640165,-698.7399928,0.0002514,2]
[356492134,1742532640175,-151.62110879,0.000258,2]
[356492135,1742532640186,-3000.0,0.00025894,2]
[356492136,1742532640196,-13540.11057632,0.000259,2]
[356492137,1742532640206,-1168.32544928,0.000259,4]
[356492138,1742532640215,-537.74673644,0.00025983,2]
[356492139,1742532640224,-500.0,0.00025983,2]
[356492140,1742532640234,-500.0,0.00025983,2]
[356492141,1742532640243,-500.0,0.00025983,2]
[356492142,1742532640253,-500.0,0.00025983,2]
[356492143,1742532640264,-500.0,0.00025983,2]
[356492144,1742532640273,-500.0,0.00025983,2]
[356492145,1742532640284,-500.0,0.00025983,2]
[356492146,1742532640294,-500.0,0.00025983,2]
[356492147,1742532640303,-500.0,0.00025983,2]
[356492148,1742532640313,-500.0,0.00025983,2]
[356492149,1742532640322,-500.0,0.00025983,2]
[356492150,1742532640331,-500.0,0.00025983,2]
[356492151,1742532640340,-500.0,0.00025983,2]
[356492152,1742532640349,-500.0,0.00025983,2]
[356492153,1742532640359,-500.0,0.00025983,2]
[356492154,1742532640368,-500.0,0.00025983,2]
[356492155,1742532640376,-500.0,0.00025983,2]
[356492156,1742532640386,-500.0,0.00025983,2]
[356492157,1742532640395,-172.69419602,0.00025983,2]
[356492158,1742532640404,-500.0,0.00025983,2]
[356492159,1742532640415,-500.0,0.00025983,2]
[356492160,1742532640424,-500.0,0.00025983,2]
[356492161,1742532640433,-500.0,0.00025983,2]
[356492162,1742532640442,-500.0,0.00025983,2]
[356492163,1742532640451,-500.0,0.00025983,2]
[356492164,1742532640461,-500.0,0.00025983,2]
[356492165,1742532640470,-500.0,0.00025983,2]
[356492166,1742532640479,-500.0,0.00025983,2]
[356492167,1742532640489,-234.11571931,0.00025983,2]
[356492168,1742532640501,-265.88428069,0.00025983,2]
[356492169,1742532640510,-79.36488143,0.00025983,2]
[356492203,1742532752810,160.0,0.0002,3]
[356492250,1742533833273,-158.15972273,0.00020675,5]
[356492251,1742533833285,-363.5392796,0.0002505,2]
[356492252,1742533833295,-354.984742,0.00025194,2]
[356492253,1742533833307,-1296.64425184,0.00025784,2]
[356492254,1742533833318,-301.63130953,0.00025784,2]
[356492255,1742533833328,-620.56220065,0.00025866,2]
[356492256,1742533833339,-431.82005376,0.00025875,2]
[356492257,1742533833349,-300.0,0.00025875,2]
[356492258,1742533833360,-16566.34759915,0.00025882,2]
[356492277,1742533838087,-635.1249922,0.00025875,2]
[356492278,1742533838097,-500.0,0.00025875,2]
[356492279,1742533838107,-500.0,0.00025875,2]
[356492280,1742533838117,-500.0,0.00025875,2]
[356492281,1742533838127,-500.0,0.00025875,2]
[356492282,1742533838138,-500.0,0.00025875,2]
[356492283,1742533838147,-243.66493614,0.00025875,2]
[356492284,1742533838490,-256.33506386,0.00025875,2]
[356492285,1742533838500,-500.0,0.00025875,2]
[356492286,1742533838509,-500.0,0.00025875,2]
[356492287,1742533838519,-334.97335218,0.00025875,2]
[356492288,1742533838531,-165.02664782,0.00025875,2]
[356492289,1742533838541,-185.42605648,0.00025875,2]
[356492290,1742533838571,-314.57394352,0.00025875,2]
[356492291,1742533838581,-500.0,0.00025875,2]
[356492292,1742533838590,-187.48175097,0.00025875,2]
[356492293,1742533838600,-500.0,0.00025875,2]
[356492294,1742533838610,-500.0,0.00025875,2]
[356492295,1742533838620,-500.0,0.00025875,2]
[356492296,1742533838629,-500.0,0.00025875,2]
[356492297,1742533838639,-500.0,0.00025875,2]
[356492298,1742533838649,-500.0,0.00025875,2]
[356492299,1742533838711,-500.0,0.00025875,2]
[356492300,1742533838721,-500.0,0.00025875,2]
[356492301,1742533838730,-500.0,0.00025875,2]
[356492302,1742533838740,-500.0,0.00025875,2]
[356492303,1742533838749,-500.0,0.00025875,2]
[356492304,1742533838758,-500.0,0.00025875,2]
[356492305,1742533838766,-500.0,0.00025875,2]
[356492306,1742533838775,-500.0,0.00025875,2]
[356492307,1742533838784,-500.0,0.00025875,2]
[356492308,1742533838794,-500.0,0.00025875,2]
[356492309,1742533838803,-500.0,0.00025875,2]
[356492310,1742533838812,-500.0,0.00025875,2]
[356492311,1742533838822,-500.0,0.00025875,2]
[356492312,1742533838831,-500.0,0.00025875,2]
[356492313,1742533838840,-500.0,0.00025875,2]
[356492314,1742533838849,-500.0,0.00025875,2]
[356492315,1742533838858,-500.0,0.00025875,2]
[356492316,1742533838867,-500.0,0.00025875,2]
[356492317,1742533838877,-500.0,0.00025875,2]
[356492318,1742533838886,-500.0,0.00025875,2]
[356492319,1742533838896,-407.97811771,0.00025875,2]
[356492320,1742533838905,-500.0,0.00025875,2]
[356492321,1742533838915,-500.0,0.00025875,2]
[356492322,1742533838924,-500.0,0.00025875,2]
[356492323,1742533838934,-500.0,0.00025875,2]
[356492324,1742533838943,-500.0,0.00025875,2]
[356492325,1742533838953,-500.0,0.00025875,2]
[356492326,1742533838962,-500.0,0.00025875,2]
[356492327,1742533838972,-500.0,0.00025875,2]
[356492328,1742533838982,-500.0,0.00025875,2]
[356492329,1742533838991,-500.0,0.00025875,2]
[356492330,1742533839000,-538.11448792,0.00025875,2]
[356492331,1742533839010,-500.0,0.00025875,2]
[356492332,1742533839019,-500.0,0.00025875,2]
[356492333,1742533839029,-500.0,0.00025875,2]
[356492334,1742533839038,-20743.50106853,0.00025882,2]
[356492335,1742533839051,-7099.88848728,0.00025882,2]
[356492336,1742533839070,-3075.94034887,0.00025882,2]
[356492337,1742533839081,-157134.92181989,0.00025882,2]
[356492338,1742533839092,-17379.40067628,0.00025882,2]
[356492339,1742533839102,-3000.0,0.00025884,2]
[356492340,1742533839111,-500.0,0.000259,2]
[356492341,1742533839121,-1540.7197103,0.000259,4]
[356492342,1742533839130,-500.0,0.000259,2]
[356492343,1742533839141,-500.0,0.000259,2]
[356492344,1742533839150,-500.0,0.000259,2]
[356492345,1742533839159,-500.0,0.000259,2]
[356492346,1742533839169,-500.0,0.000259,2]
[356492347,1742533839179,-500.0,0.000259,2]
[356492348,1742533839188,-500.0,0.000259,2]
[356492349,1742533839198,-500.0,0.000259,2]
[356492350,1742533839207,-500.0,0.000259,2]
[356492351,1742533839217,-500.0,0.000259,2]
[356492352,1742533839226,-500.0,0.000259,2]
[356492353,1742533839235,-500.0,0.000259,2]
[356492354,1742533839244,-500.0,0.000259,2]
[356492355,1742533839253,-500.0,0.000259,2]
[356492356,1742533839262,-168.11780877,0.00025983,2]
[356492357,1742533839272,-23574.6841848,0.00026218,2]
[356492358,1742533839281,-1540.71971014,0.00026245,4]
[356492359,1742533839290,-1540.71971014,0.0002659,4]
[356492360,1742533839300,-1540.71971014,0.00026934,4]
[356492361,1742533839310,-301.63130949,0.00027096,2]
[356492362,1742533839319,-1540.71971014,0.00027279,4]
[356492363,1742533839329,-151.0,0.00027397,7]
[356492364,1742533839338,-151.0,0.00027397,7]
[356492365,1742533839347,-500.0,0.00027397,2]
[356492366,1742533839357,-500.0,0.00027397,2]
[356492367,1742533839366,-500.0,0.00027397,2]
[356492368,1742533839375,-500.0,0.00027397,2]
[356492369,1742533839385,-500.0,0.00027397,2]
[356492370,1742533839395,-500.0,0.00027397,2]
[356492371,1742533839404,-500.0,0.00027397,2]
[356492372,1742533839414,-500.0,0.00027397,2]
[356492373,1742533839423,-500.0,0.00027397,2]
[356492374,1742533839432,-500.0,0.00027397,2]
[356492375,1742533839441,-500.0,0.00027397,2]
[356492376,1742533839450,-500.0,0.00027397,2]
[356492377,1742533839460,-442.92192412,0.00027397,2]
[356492378,1742533839469,-500.0,0.00027397,2]
[356492379,1742533839478,-500.0,0.00027397,2]
[356492380,1742533839488,-500.0,0.00027397,2]
[356492381,1742533839497,-500.0,0.00027397,2]
[356492382,1742533839507,-500.0,0.00027397,2]
[356492383,1742533839516,-500.0,0.00027397,2]
[356492384,1742533839526,-500.0,0.00027397,2]
[356492385,1742533839536,-500.0,0.00027397,2]
[356492386,1742533839545,-1540.71971014,0.00027624,4]
[356492387,1742533839554,-1540.71971014,0.00027969,4]
[356492388,1742533839564,-400.0,0.00028006,2]
[356492389,1742533839573,-1540.71971014,0.00028314,5]
[356492390,1742533839582,-301.63130949,0.00028408,2]
[356492391,1742533839591,-1540.71971014,0.00028659,5]
[356492392,1742533839600,-1540.71971014,0.00029003,5]
[356492393,1742533839609,-12458.93820146,0.00029077,2]
[356492394,1742533839619,-418.02116171,0.00029077,2]
[356492395,1742533839628,-160.0,0.00029077,2]
[356492396,1742533839637,-834.1406796,0.00029077,2]
[356492398,1742533839646,-160.0,0.00029249,2]
[356492399,1742533839656,-1540.71971014,0.00029348,5]
[356492400,1742533839665,-1540.71971014,0.00029693,5]
[356492401,1742533839674,-301.63130949,0.0002972,2]
[356492402,1742533839683,-1540.71971014,0.00030038,5]
[356492403,1742533839692,-1540.71971014,0.00030383,5]
[356492404,1742533839702,-203.0,0.0003068,30]
[356492405,1742533839711,-1540.71971014,0.00030728,5]
[356492406,1742533839720,-150.0,0.00030758,2]
[356492407,1742533839729,-541.0,0.00030758,2]
[356492408,1742533839738,-2265.0,0.00030758,2]
[356492409,1742533839748,-400.0,0.00030758,2]
[356492410,1742533839757,-301.63130949,0.00031032,2]
[356492411,1742533839766,-1540.71971014,0.00031072,5]
[356492412,1742533839775,-500.0,0.00031379,5]
[356492414,1742533839784,-1000.0,0.00031379,5]
[356492415,1742533839793,-951.00195521,0.00031379,5]
[356492416,1742533839802,-500.0,0.00031379,5]
[356492417,1742533839812,-1000.0,0.00031379,5]
[356492418,1742533839822,-1000.0,0.00031379,5]
[356492419,1742533839832,-1000.0,0.00031379,5]
[356492420,1742533839842,-1000.0,0.00031379,5]
[356492421,1742533839851,-1000.0,0.00031379,5]
[356492422,1742533839860,-500.0,0.00031379,5]
[356492423,1742533839869,-500.0,0.00031379,5]
[356492424,1742533839880,-151.0,0.00031417,7]
[356492425,1742533839889,-151.0,0.00031417,7]
[356492426,1742533839898,-1540.71971014,0.00031417,6]
[356492427,1742533839907,-1540.71971014,0.00031762,6]
[356492428,1742533839916,-494.9398248,0.00031889,4]
[356492429,1742533839925,-251.056,0.00031945,31]
[356492430,1742533839934,-1540.71971014,0.00032107,6]
[356492431,1742533839943,-301.63130949,0.00032344,2]
[356492432,1742533839953,-1540.71971014,0.00032452,6]
[356492433,1742533839962,-1540.71971014,0.00032797,6]
[356492434,1742533839971,-480.4,0.000328,9]
[356492435,1742533839981,-300.0,0.000328,16]
[356492436,1742533839991,-150.0,0.000328,30]
[356492437,1742533840000,-200.57245266,0.00032866,2]
[356492438,1742533840010,-500.0,0.0003287,15]
[356492439,1742533840019,-500.0,0.0003287,15]
[356492440,1742533840029,-468.74640798,0.0003287,15]
[356492441,1742533840039,-500.0,0.00032873,5]
[356492442,1742533840049,-500.0,0.00032873,5]
[356492443,1742533840060,-500.0,0.00032873,5]
[356492444,1742533840070,-500.0,0.00032873,5]
[356492445,1742533840080,-500.0,0.00032873,5]
[356492446,1742533840089,-500.0,0.00032873,5]
[356492447,1742533840099,-604.69066285,0.00032873,5]
[356492449,1742533840110,-500.0,0.00032873,5]
[356492450,1742533840119,-500.0,0.00032875,2]
[356492451,1742533840129,-8137.92224591,0.00032876,21]
[356492452,1742533840141,-165.49027591,0.00032876,21]
[356492453,1742533840150,-509.96,0.00032876,21]
[356492454,1742533840159,-500.0,0.00032876,21]
[356492455,1742533840169,-506.5,0.00032876,21]
[356492456,1742533840178,-500.0,0.00032876,21]
[356492457,1742533840187,-486.11366797,0.00032876,21]
[356492508,1742533993425,32980.0,0.0002,3]
[356492512,1742534334579,0.9048252,0.000175,3]
[356492513,1742534334611,1542.66487177,0.000175,3]
[356492514,1742534336880,-218.49776043,0.000175,3]
[356492515,1742534343047,-203.3606391,0.00017499,2]
[356492516,1742534347759,-155.84220323,0.00017324,2]
[356492517,1742534381291,24428.7325426,0.00016,3]
[356492518,1742534534422,-150.0,0.00017151,2]
[356492565,1742535032386,-271.85839953,0.00023889,2]
[356492566,1742535032396,-595.2094893,0.0002413,2]
[356492567,1742535032405,-250.0,0.00024396,2]
[356492568,1742535032415,-203.4402602,0.00024436,2]
[356492569,1742535032425,-304.0,0.00024658,5]
[356492570,1742535032434,-200.0,0.00024658,15]
[356492571,1742535032447,-237.9833485,0.00024781,2]
[356492572,1742535032457,-2463.42703022,0.00025,3]
[356492573,1742535032467,-274.047284,0.00025269,2]
[356492574,1742535032477,-400.0000009,0.00025668,2]
[356492575,1742535032488,-1296.64425184,0.000257,2]
[356492576,1742535032497,-500.0,0.00025767,2]
[356492577,1742535032507,-500.0,0.00025767,2]
[356492578,1742535032517,-500.0,0.00025767,2]
[356492579,1742535032528,-500.0,0.00025767,2]
[356492580,1742535032538,-500.0,0.00025767,2]
[356492581,1742535032547,-500.0,0.00025767,2]
[356492582,1742535032557,-615.2108755,0.00025767,2]
[356492583,1742535032566,-183.00390785,0.00025767,2]
[356492584,1742535032578,-316.99609215,0.00025767,2]
[356492585,1742535032589,-500.0,0.00025767,2]
[356492586,1742535032598,-500.0,0.00025767,2]
[356492587,1742535032608,-500.0,0.00025767,2]
[356492588,1742535032618,-500.0,0.00025767,2]
[356492589,1742535032627,-500.0,0.00025767,2]
[356492590,1742535032637,-500.0,0.00025767,2]
[356492591,1742535032646,-500.0,0.00025767,2]
[356492592,1742535032656,-500.0,0.00025767,2]
[356492593,1742535032665,-500.0,0.00025767,2]
[356492594,1742535032675,-256.91421176,0.00025767,2]
[356492595,1742535032685,-500.0,0.00025767,2]
[356492596,1742535032695,-500.0,0.00025767,2]
[356492597,1742535032704,-500.0,0.00025767,2]
[356492598,1742535032713,-500.0,0.00025767,2]
[356492599,1742535032769,-500.0,0.00025767,2]
[356492600,1742535032779,-500.0,0.00025767,2]
[356492601,1742535032788,-500.0,0.00025767,2]
[356492602,1742535032797,-500.0,0.00025767,2]
[356492603,1742535032807,-500.0,0.00025767,2]
[356492604,1742535032816,-500.0,0.00025767,2]
[356492605,1742535032826,-500.0,0.00025767,2]
[356492606,1742535032835,-500.0,0.00025767,2]
[356492607,1742535032844,-500.0,0.00025767,2]
[356492608,1742535032854,-500.0,0.00025767,2]
[356492609,1742535032866,-500.0,0.00025767,2]
[356492610,1742535032876,-500.0,0.00025767,2]
[356492611,1742535032885,-500.0,0.00025767,2]
[356492612,1742535032894,-500.0,0.00025767,2]
[356492613,1742535032904,-500.0,0.00025767,2]
[356492614,1742535032914,-500.0,0.00025767,2]
[356492615,1742535032924,-500.0,0.00025767,2]
[356492616,1742535032934,-500.0,0.00025767,2]
[356492617,1742535032944,-500.0,0.00025767,2]
[356492618,1742535032953,-500.0,0.00025767,2]
[356492619,1742535032963,-500.0,0.00025767,2]
[356492620,1742535032972,-500.0,0.00025767,2]
[356492621,1742535032982,-500.0,0.00025767,2]
[356492622,1742535032992,-500.0,0.00025767,2]
[356492623,1742535033002,-500.0,0.00025767,2]
[356492624,1742535033011,-500.0,0.00025767,2]
[356492625,1742535033022,-500.0,0.00025767,2]
[356492626,1742535033032,-500.0,0.00025767,2]
[356492627,1742535033042,-500.0,0.00025767,2]
[356492628,1742535033051,-500.0,0.00025767,2]
[356492629,1742535033061,-500.0,0.00025767,2]
[356492630,1742535033071,-500.0,0.00025767,2]
[356492631,1742535033080,-500.0,0.00025767,2]
[356492632,1742535033090,-500.0,0.00025767,2]
[356492633,1742535033100,-500.0,0.00025767,2]
[356492634,1742535033109,-500.0,0.00025767,2]
[356492635,1742535033118,-500.0,0.00025767,2]
[356492636,1742535033128,-500.0,0.00025767,2]
[356492637,1742535033137,-500.0,0.00025767,2]
[356492638,1742535033147,-500.0,0.00025767,2]
[356492639,1742535033156,-500.0,0.00025767,2]
[356492640,1742535033165,-500.0,0.00025767,2]
[356492641,1742535033174,-156.9405971,0.00025767,2]
[356492642,1742535033183,-500.0,0.00025767,2]
[356492643,1742535033192,-500.0,0.00025767,2]
[356492644,1742535033202,-500.0,0.00025767,2]
[356492645,1742535033211,-500.0,0.00025767,2]
[356492646,1742535033221,-500.0,0.00025767,2]
[356492647,1742535033231,-500.0,0.00025767,2]
[356492648,1742535033241,-500.0,0.00025767,2]
[356492649,1742535033252,-500.0,0.00025767,2]
[356492650,1742535033263,-500.0,0.00025767,2]
[356492651,1742535033272,-1195.99694898,0.00025767,2]
[356492652,1742535033282,-1195.99694898,0.00025767,2]
[356492653,1742535033291,-1195.99694898,0.00025767,2]
[356492654,1742535033301,-1195.99694898,0.00025767,2]
[356492655,1742535033310,-1195.99694898,0.00025767,2]
[356492656,1742535033320,-1195.99694898,0.00025767,2]
[356492657,1742535033330,-714.23512538,0.00025767,2]
[356492658,1742535033340,-1195.99694898,0.00025767,2]
[356492659,1742535033350,-714.23512538,0.00025767,2]
[356492660,1742535033360,-1195.99694898,0.00025767,2]
[356492661,1742535033369,-714.23512538,0.00025767,2]
[356492662,1742535033379,-1195.99694898,0.00025767,2]
[356492663,1742535033388,-714.23512538,0.00025767,2]
[356492664,1742535033398,-1195.99694898,0.00025767,2]
[356492665,1742535033407,-714.23512538,0.00025767,2]
[356492666,1742535033416,-1195.99694898,0.00025767,2]
[356492667,1742535033426,-714.23512538,0.00025767,2]
[356492668,1742535033436,-1195.99694898,0.00025767,2]
[356492669,1742535033449,-714.23512538,0.00025767,2]
[356492670,1742535033459,-1195.99694898,0.00025767,2]
[356492671,1742535033468,-674.01789954,0.00025767,2]
[356492672,1742535033481,-40.21722584,0.00025767,2]
[356492673,1742535033493,-1044.52928898,0.00025767,2]
[356492674,1742535033504,-151.46766,0.00025767,2]
[356492675,1742535033514,-714.23512538,0.00025767,2]
[356492676,1742535033525,-407.6175953,0.00025767,2]
[356492686,1742535038178,-202.57401422,0.00025766,2]
[356492687,1742535038188,-302.27403763,0.00025766,2]
[356492688,1742535038197,-1777.68221577,0.00025776,2]
[356492694,1742535040465,-4549.91186261,0.00025776,2]
[356492695,1742535040524,-215672.40592162,0.00025776,2]
[356492696,1742535040536,-500.0,0.000258,2]
[356492697,1742535040546,-500.0,0.000258,2]
[356492698,1742535040555,-500.0,0.000258,2]
[356492699,1742535040564,-580.15705442,0.000258,2]
[356492700,1742535040573,-500.0,0.000258,2]
[356492701,1742535040583,-500.0,0.000258,2]
[356492702,1742535040592,-500.0,0.000258,2]
[356492703,1742535040601,-500.0,0.000258,2]
[356492704,1742535040610,-500.0,0.000258,2]
[356492705,1742535040622,-500.0,0.000258,2]
[356492706,1742535040631,-500.0,0.000258,2]
[356492707,1742535040639,-500.0,0.000258,2]
[356492708,1742535040649,-500.0,0.000258,2]
[356492709,1742535040658,-500.0,0.000258,2]
[356492710,1742535040667,-500.0,0.000258,2]
[356492711,1742535040676,-197.86568055,0.000258,2]
[356492712,1742535040686,-500.0,0.000258,2]
[356492713,1742535040694,-500.0,0.000258,2]
[356492714,1742535040704,-771.85848091,0.000259,4]
[356492715,1742535040713,-500.0,0.00026,7]
[356492716,1742535040722,-771.85848074,0.00026245,4]
[356492717,1742535040731,-771.85848074,0.0002659,4]
[356492718,1742535040741,-771.85848074,0.00026934,4]
[356492719,1742535040750,-834.1406796,0.00027,3]
[356492720,1742535040760,-771.85848074,0.00027279,4]
[356492721,1742535040770,-500.0,0.00027397,5]
[356492722,1742535040779,-420.01845071,0.00027624,4]
[356492746,1742535043474,-251.9557331,0.00027624,4]
[356492773,1742535791184,-150.0,0.0002,2]
[356492774,1742535791207,-142.51829582,0.0002,3]
[356492775,1742535845118,-223.96826078,0.00019999,2]
[356492776,1742535857594,-198.30041947,0.00019799,2]
[356492777,1742535907758,-25.66784131,0.00019799,2]
[356492778,1742535907782,-127.36233865,0.00019999,2]
[356492779,1742535911625,-196.96982004,0.00019799,2]
[356492780,1742535963119,-1.33059943,0.00019799,2]
[356492781,1742535963147,-216.57853844,0.00019999,2]
[356492783,1742535970315,-159.02390827,0.00019799,2]
[356492784,1742536024798,-58.8852296,0.00019799,2]
[356492785,1742536024822,-239.88786993,0.00019999,2]
[356492786,1742536035296,-250.0,0.00019799,2]
[356492789,1742536084142,-207.7970078,0.00019799,2]
[356492790,1742536084166,-11.07036061,0.00019999,2]
[356492791,1742536091534,-150.0,0.00019799,2]
[356492792,1742536143151,-154.4112854,0.00019799,2]
[356492800,1742536194524,-203.84027914,0.00019899,30]
[356492801,1742536203160,-164.45608301,0.00019799,2]
[356492802,1742536203185,-35.54391699,0.00019899,30]
[356492818,1742536232619,-200.0,0.00019799,2]
[356492819,1742536232632,-67.88404217,0.00019899,30]
[356492820,1742536232642,-300.0,0.00019999,2]
[356492821,1742536232652,-17.48170418,0.0002,3]
[356492822,1742536232662,-351.34772024,0.0002,2]
[356492823,1742536234955,-300.0,0.0002,2]
[356492824,1742536235826,-278.80680054,0.0002,2]
[356492825,1742536235837,-14069.84547922,0.0002,2]
[356492826,1742536235847,-24900.0,0.00022179,2]
[356492827,1742536235856,-1034.4809524,0.00022895,2]
[356492828,1742536235867,-500.0,0.00023699,2]
[356492829,1742536235880,-500.0,0.00023699,2]
[356492830,1742536235889,-500.0,0.00023699,2]
[356492831,1742536235898,-500.0,0.00023699,2]
[356492832,1742536235907,-500.0,0.00023699,2]
[356492833,1742536235917,-500.0,0.00023699,2]
[356492834,1742536235927,-500.0,0.00023699,2]
[356492835,1742536235936,-500.0,0.00023699,2]
[356492836,1742536235945,-500.0,0.00023699,2]
[356492837,1742536235954,-500.0,0.00023699,2]
[356492838,1742536235963,-500.0,0.00023699,2]
[356492839,1742536235973,-500.0,0.00023699,2]
[356492840,1742536235982,-500.0,0.00023699,2]
[356492841,1742536235991,-273.76709367,0.00023699,2]
[356492842,1742536236000,-500.0,0.00023699,2]
[356492843,1742536236010,-500.0,0.00023699,2]
[356492844,1742536236019,-500.0,0.00023699,2]
[356492845,1742536236028,-500.0,0.00023699,2]
[356492846,1742536236038,-500.0,0.00023699,2]
[356492847,1742536236047,-500.0,0.00023699,2]
[356492848,1742536236056,-500.0,0.00023699,2]
[356492849,1742536236065,-500.0,0.00023699,2]
[356492850,1742536236075,-500.0,0.00023699,2]
[356492851,1742536236085,-500.0,0.00023699,2]
[356492852,1742536236104,-500.0,0.00023699,2]
[356492853,1742536236116,-500.0,0.00023699,2]
[356492854,1742536236126,-500.0,0.00023699,2]
[356492855,1742536236135,-131.41307024,0.00023699,2]
[356492861,1742536238352,-368.58692976,0.00023699,2]
[356492862,1742536238361,-500.0,0.00023699,2]
[356492863,1742536238371,-500.0,0.00023699,2]
[356492864,1742536238381,-500.0,0.00023699,2]
[356492865,1742536238389,-500.0,0.00023699,2]
[356492866,1742536238398,-500.0,0.00023699,2]
[356492867,1742536238408,-500.0,0.00023699,2]
[356492868,1742536238417,-500.0,0.00023699,2]
[356492869,1742536238426,-500.0,0.00023699,2]
[356492870,1742536238435,-500.0,0.00023699,2]
[356492871,1742536238444,-500.0,0.00023699,2]
[356492872,1742536238453,-500.0,0.00023699,2]
[356492873,1742536238462,-500.0,0.00023699,2]
[356492874,1742536238471,-500.0,0.00023699,2]
[356492875,1742536238480,-500.0,0.00023699,2]
[356492876,1742536238489,-500.0,0.00023699,2]
[356492877,1742536238498,-500.0,0.00023699,2]
[356492878,1742536238507,-500.0,0.00023699,2]
[356492879,1742536238516,-500.0,0.00023699,2]
[356492880,1742536238526,-500.0,0.00023699,2]
[356492881,1742536238535,-500.0,0.00023699,2]
[356492882,1742536238543,-500.0,0.00023699,2]
[356492883,1742536238552,-500.0,0.00023699,2]
[356492884,1742536238562,-500.0,0.00023699,2]
[356492885,1742536238571,-500.0,0.00023699,2]
[356492886,1742536238580,-500.0,0.00023699,2]
[356492887,1742536238589,-500.0,0.00023699,2]
[356492888,1742536238598,-500.0,0.00023699,2]
[356492889,1742536238607,-500.0,0.00023699,2]
[356492890,1742536238616,-500.0,0.00023699,2]
[356492891,1742536238626,-500.0,0.00023699,2]